[Event "WJCC U20 Girls 2019"]
[Site "New Delhi"]
[Date "2019.10.19"]
[Round "6.5"]
[White "Arpita, Mukherjee"]
[Black "Assaubayeva, Bibisara"]
[Result "1/2-1/2"]
[ECO "B92"]
[WhiteElo "2271"]
[BlackElo "2381"]
[Annotator "NA"]
[PlyCount "101"]
[EventDate "2019.10.15"]
[EventType "swiss"]
[EventCountry "IND"]
[SourceTitle "playchess.com"]
[Source "ChessBase"]
[SourceQuality "1"]
[TimeControl "40/5400+30:1800+30"]

1. e4 {[%emt 0:00:36]} c5 {[%emt 0:00:29]} 2. Nf3 {[%emt 0:00:19]} d6 {[%emt 0:00:10]} 3. d4 {[%emt 0:00:11]} cxd4 {[%emt 0:00:08]} 4. Nxd4 {[%emt 0:00:09]} Nf6 {[%emt 0:00:09]} 5. Nc3 {[%emt 0:00:14]} a6 {[%emt 0:00:06]} 6. Be2 {[%emt 0:00:30]} e5 {[%emt 0:00:34]} 7. Nf3 {[%emt 0:00:37]} Be7 {[%emt 0:00:35]} 8. Bg5 {[%emt 0:00:24]} Be6 {[%emt 0:03:45]} 9. Bxf6 {[%emt 0:04:25]} Bxf6 {[%emt 0:00:14]} 10. Nd5 {[%emt 0:00:53]} Nd7 {[%emt 0:04:07]} 11. Bc4 {[%emt 0:04:32]} Be7 $11 {[%emt 0:04:34]} 12. a4 {[%emt 0:08:12]} Rc8 {[%emt 0:03:49]} 13. Qe2 {[%emt 0:15:38]} Nf6 {[%emt 0:04:34]} 14. Nxf6+ {[%emt 0:04:11]} Bxf6 {[%emt 0:00:15]} 15. Bxe6 {[%emt 0:00:14]} fxe6 {[%emt 0:00:02]} 16. O-O {[%emt 0:00:24]} O-O {[%emt 0:01:57]} 17. Rfd1 {[%emt 0:03:43]} Qc7 {[%emt 0:01:54]} 18. c3 {[%emt 0:03:36]} Be7 {[%emt 0:04:33]} 19. a5 {[%emt 0:02:30]} Qc5 {[%emt 0:02:53]} 20. Rdc1 {[%emt 0:16:14]} Rc6 {[%emt 0:06:38]} 21. h4 {[%emt 0:07:23]} Rc7 {[%emt 0:03:08]} 22. Rd1 {[%emt 0:09:20]} Qc6 {[%emt 0:05:31]} 23. Rd3 {[%emt 0:05:05]} Rf4 {[%emt 0:06:19]} 24. Re3 {[%emt 0:02:36]} Rc8 {[%emt 0:06:42]} 25. g3 {[%emt 0:01:21]} Rff8 {[%emt 0:05:36]} 26. b4 {[%emt 0:01:49]} Rc7 {[%emt 0:02:48]} 27. Nd2 {[%emt 0:00:56]} d5 {[%emt 0:03:11]} 28. Nf3 {[%emt 0:02:59]} Bf6 {[%emt 0:01:39]} 29. exd5 {[%emt 0:01:03]} exd5 {[%emt 0:00:03]} 30. Nxe5 {[%emt 0:00:13]} Bxe5 {[%emt 0:00:07]} 31. Rxe5 {[%emt 0:00:03]} Qxc3 {[%emt 0:00:11]} 32. Re1 {[%emt 0:03:16]} Rcf7 {[%emt 0:01:33]} 33. Re8 {[%emt 0:01:34]} Qxb4 {[%emt 0:00:58]} 34. Qe6 {[%emt 0:01:16]} Rxe8 {[%emt 0:00:42]} 35. Qxe8+ {[%emt 0:00:03]} Qf8 {[%emt 0:00:34]} 36. Qa4 {[%emt 0:00:58]} Qc5 {[%emt 0:02:09]} 37. Re8+ {[%emt 0:00:29]} Rf8 {[%emt 0:00:01]} 38. Rxf8+ {[%emt 0:00:19]} Qxf8 {[%emt 0:00:05]} 39. Qd7 {[%emt 0:00:28]} Qb8 {[%emt 0:08:38]} 40. Qxd5+ {[%emt 0:00:15]} Kh8 {[%emt 0:00:04]} 41. Qd7 {[%emt 0:01:26]} h6 {[%emt 0:05:22]} 42. h5 {[%emt 0:01:31]} Kg8 {[%emt 0:04:18]} 43. Qe6+ {[%emt 0:00:36]} Kf8 {[%emt 0:01:29]} 44. Qf5+ {[%emt 0:00:12]} Ke7 {[%emt 0:01:29]} 45. Qe4+ {[%emt 0:00:19]} Kf7 {[%emt 0:02:38]} 46. Qg6+ {[%emt 0:00:11]} Kg8 {[%emt 0:00:07]} 47. Qe6+ {[%emt 0:00:03]} Kh8 {[%emt 0:00:12]} 48. Qd7 {[%emt 0:00:05]} b6 {[%emt 0:02:12]} 49. axb6 {[%emt 0:00:22]} Qxb6 {[%emt 0:00:01]} 50. Qe8+ {[%emt 0:00:06]} Kh7 {[%emt 0:00:14]} 51. Qe4+ {[%emt 0:00:03]} 1/2-1/2

[Event "WJCC U20 Girls 2019"]
[Site "New Delhi"]
[Date "2019.10.19"]
[Round "6.6"]
[White "Berdnyk, Mariia"]
[Black "Toshali, V."]
[Result "1-0"]
[ECO "D11"]
[WhiteElo "2349"]
[BlackElo "1868"]
[Annotator "NA"]
[PlyCount "115"]
[EventDate "2019.10.15"]
[EventType "swiss"]
[EventCountry "IND"]
[SourceTitle "playchess.com"]
[Source "ChessBase"]
[SourceQuality "1"]
[TimeControl "40/5400+30:1800+30"]

1. d4 {[%emt 0:00:00]} d5 2. c4 {[%emt 0:00:00]} c6 {[%emt 0:00:00]} 3. Nf3 {[%emt 0:00:00]} Nf6 {[%emt 0:00:00]} 4. g3 {[%emt 0:00:00]} Bg4 {[%emt 0:00:11]} 5. Ne5 {[%emt 0:02:47]} Bf5 {[%emt 0:00:31]} 6. cxd5 {[%emt 0:01:55]} cxd5 {[%emt 0:01:43]} 7. Nc3 {[%emt 0:00:16]} e6 {[%emt 0:01:03]} 8. Qa4+ {[%emt 0:02:28]} Nbd7 {[%emt 0:01:42]} 9. e4 {[%emt 0:02:57]} Bxe4 {[%emt 0:07:41]} 10. f3 {[%emt 0:00:41]} Bg6 {[%emt 0:19:57]} 11. Bg5 {[%emt 0:00:44]} a6 {[%emt 0:03:05]} 12. Nxd7 {[%emt 0:00:20]} b5 {[%emt 0:00:22]} 13. Nxf6+ {[%emt 0:14:13]} gxf6 {[%emt 0:00:30]} 14. Nxb5 {[%emt 0:00:17]} fxg5 {[%emt 0:06:10]} 15. Nc7+ {[%emt 0:00:15]} Ke7 {[%emt 0:00:13]} 16. Nxa8 {[%emt 0:00:08]} Qxa8 {[%emt 0:00:05]} 17. Qxa6 {[%emt 0:00:47]} Qxa6 {[%emt 0:00:26]} 18. Bxa6 {[%emt 0:00:01]} Bg7 {[%emt 0:00:25]} 19. O-O-O {[%emt 0:06:34]} Ra8 {[%emt 0:04:01]} 20. Bd3 {[%emt 0:00:07]} Rxa2 {[%emt 0:01:04]} 21. Bxg6 {[%emt 0:07:46]} hxg6 {[%emt 0:01:31]} 22. Kc2 {[%emt 0:00:12]} Ra4 {[%emt 0:03:47]} 23. h4 {[%emt 0:04:07]} gxh4 {[%emt 0:03:47]} 24. Rxh4 {[%emt 0:00:09]} Bf6 {[%emt 0:03:52]} 25. Rh2 {[%emt 0:10:49]} Ra7 {[%emt 0:11:30]} 26. Kd3 {[%emt 0:00:42]} Rb7 {[%emt 0:05:09]} 27. Ke3 {[%emt 0:00:44]} e5 {[%emt 0:08:42]} 28. dxe5 {[%emt 0:09:02]} Bxe5 {[%emt 0:00:02]} 29. Re2 {[%emt 0:00:51]} Kd6 {[%emt 0:03:57]} 30. Rb1 {[%emt 0:01:10]} Bxg3 {[%emt 0:00:46]} 31. b4 {[%emt 0:00:14]} Re7+ {[%emt 0:05:46]} 32. Kd3 {[%emt 0:00:07]} Ra7 {[%emt 0:01:36]} 33. Rb3 {[%emt 0:04:05]} Kc6 {[%emt 0:01:49]} 34. b5+ {[%emt 0:04:03]} Kb6 {[%emt 0:00:29]} 35. Rc2 {[%emt 0:00:14]} Rd7 {[%emt 0:02:12]} 36. Kd4 {[%emt 0:01:22]} Rd6 {[%emt 0:01:11]} 37. Ra2 {[%emt 0:01:39]} Kb7 {[%emt 0:00:26]} 38. Kc5 {[%emt 0:01:25]} d4 {[%emt 0:00:27]} 39. Rba3 {[%emt 0:00:57]} Kc8 {[%emt 0:02:15]} 40. b6 {[%emt 0:03:05]} d3 {[%emt 0:00:31]} 41. Ra8+ {[%emt 0:32:46]} Kd7 {[%emt 0:30:14]} 42. Rd2 {[%emt 0:02:16]} Rc6+ {[%emt 0:00:00]} 43. Kb5 {[%emt 0:00:00]} Rc3 {[%emt 0:00:00]} 44. Kb4 {[%emt 0:00:00]} Rc1 {[%emt 0:00:00]} 45. Rxd3+ {[%emt 0:00:00]} Bd6+ {[%emt 0:00:00]} 46. Kb5 {[%emt 0:00:00]} Rb1+ {[%emt 0:00:00]} 47. Ka6 {[%emt 0:00:00]} g5 {[%emt 0:00:00]} 48. Rg8 {[%emt 0:00:00]} f6 {[%emt 0:00:00]} 49. b7 {[%emt 0:00:00]} Ra1+ {[%emt 0:00:00]} 50. Kb5 {[%emt 0:00:00]} Rb1+ {[%emt 0:00:00]} 51. Ka4 {[%emt 0:00:00]} Kc6 {[%emt 0:00:00]} 52. Rxd6+ {[%emt 0:00:00]} Kxd6 {[%emt 0:00:00]} 53. b8=Q+ {[%emt 0:00:00]} Rxb8 {[%emt 0:00:00]} 54. Rxb8 {[%emt 0:00:00]} Ke5 {[%emt 0:00:00]} 55. Rb4 {[%emt 0:00:00]} f5 {[%emt 0:00:00]} 56. Kb3 {[%emt 0:00:00]} f4 {[%emt 0:00:00]} 57. Kc3 {[%emt 0:00:00]} Kf5 {[%emt 0:00:00]} 58. Rb5+ {[%emt 0:00:00]} 1-0

[Event "WJCC U20 Girls 2019"]
[Site "New Delhi"]
[Date "2019.10.19"]
[Round "6.7"]
[White "Chitlange Sakshi"]
[Black "Dordzhieva, Dinara"]
[Result "1/2-1/2"]
[ECO "A61"]
[WhiteElo "2175"]
[BlackElo "2335"]
[Annotator "NA"]
[PlyCount "121"]
[EventDate "2019.10.15"]
[EventType "swiss"]
[EventCountry "IND"]
[SourceTitle "playchess.com"]
[Source "ChessBase"]
[SourceQuality "1"]
[TimeControl "40/5400+30:1800+30"]

1. d4 {[%emt 0:00:00]} Nf6 {[%emt 0:01:50]} 2. c4 {[%emt 0:00:00]} e6 {[%emt 0:00:22]} 3. Nf3 {[%emt 0:00:07]} c5 {[%emt 0:00:06]} 4. d5 {[%emt 0:00:39]} exd5 {[%emt 0:00:08]} 5. cxd5 {[%emt 0:00:06]} d6 {[%emt 0:00:02]} 6. Nc3 {[%emt 0:02:32]} g6 {[%emt 0:00:06]} 7. Bf4 {[%emt 0:01:03]} a6 {[%emt 0:00:06]} 8. a4 {[%emt 0:00:05]} Bg7 {[%emt 0:00:05]} 9. h3 {[%emt 0:01:00]} O-O {[%emt 0:00:07]} 10. e3 {[%emt 0:00:03]} Qe7 {[%emt 0:00:13]} 11. Be2 {[%emt 0:01:52]} Nbd7 {[%emt 0:00:14]} 12. O-O {[%emt 0:00:44]} Rb8 {[%emt 0:00:25]} 13. Qc2 {[%emt 0:08:47]} Nh5 $14 {[%emt 0:09:11]} 14. Bh2 {[%emt 0:01:20]} f5 {[%emt 0:00:05]} 15. Nd2 {[%emt 0:03:20]} Nhf6 {[%emt 0:00:20]} 16. Rab1 {[%emt 0:03:51]} Ne5 {[%emt 0:10:56]} 17. b4 {[%emt 0:07:15]} cxb4 {[%emt 0:06:36]} 18. Rxb4 {[%emt 0:00:00]} Qc7 {[%emt 0:05:28]} 19. Rc1 {[%emt 0:06:33]} Kh8 {[%emt 0:03:01]} 20. Qb1 {[%emt 0:04:38]} Qf7 {[%emt 0:11:47]} 21. Qa2 {[%emt 0:13:36]} b6 {[%emt 0:04:47]} 22. Bxe5 {[%emt 0:16:45]} dxe5 {[%emt 0:00:11]} 23. Nc4 {[%emt 0:00:07]} Nd7 {[%emt 0:12:32]} 24. Qb1 {[%emt 0:02:02]} e4 {[%emt 0:17:48]} 25. Nxb6 {[%emt 0:01:41]} Nxb6 {[%emt 0:06:50]} 26. Rxb6 {[%emt 0:00:01]} Rxb6 {[%emt 0:00:04]} 27. Qxb6 {[%emt 0:00:06]} f4 {[%emt 0:00:02]} 28. Nxe4 {[%emt 0:09:19]} Qxd5 {[%emt 0:01:05]} 29. Bf3 {[%emt 0:00:00]} fxe3 {[%emt 0:01:09]} 30. Qxe3 {[%emt 0:00:02]} Qe5 {[%emt 0:01:13]} 31. Rc5 {[%emt 0:05:48]} Qe7 {[%emt 0:01:44]} 32. Qg5 {[%emt 0:01:40]} Qe8 {[%emt 0:00:56]} 33. Qc1 {[%emt 0:01:29]} Bd7 {[%emt 0:01:35]} 34. a5 {[%emt 0:00:44]} Bd4 {[%emt 0:02:08]} 35. Rc4 {[%emt 0:01:24]} Bg7 {[%emt 0:00:12]} 36. Rc7 {[%emt 0:01:19]} Bf5 {[%emt 0:01:46]} 37. Nd6 {[%emt 0:02:52]} Qe6 {[%emt 0:00:06]} 38. Nxf5 {[%emt 0:03:00]} Qxf5 {[%emt 0:00:09]} 39. Rc5 {[%emt 0:01:02]} Qd3 {[%emt 0:02:17]} 40. Rd5 {[%emt 0:02:27]} Qb3 {[%emt 0:00:58]} 41. Rd7 {[%emt 0:30:35]} Qc3 {[%emt 0:02:19]} 42. Qxc3 {[%emt 0:00:00]} Bxc3 {[%emt 0:00:10]} 43. Rd6 {[%emt 0:00:00]} Bxa5 {[%emt 0:00:07]} 44. Rxa6 {[%emt 0:00:00]} Bc3 {[%emt 0:00:04]} 45. h4 {[%emt 0:00:00]} Bd4 {[%emt 0:01:48]} 46. Rd6 {[%emt 0:00:00]} Bc5 {[%emt 0:00:34]} 47. Rd5 {[%emt 0:00:00]} Rf5 {[%emt 0:00:59]} 48. Rd7 {[%emt 0:00:00]} Rf4 {[%emt 0:00:25]} 49. h5 {[%emt 0:00:00]} gxh5 {[%emt 0:00:59]} 50. Rd5 {[%emt 0:00:00]} Rc4 {[%emt 0:00:29]} 51. Bxh5 {[%emt 0:00:00]} Rc2 {[%emt 0:00:10]} 52. Rf5 {[%emt 0:00:00]} Rc1+ {[%emt 0:00:12]} 53. Kh2 {[%emt 0:00:00]} Bd6+ {[%emt 0:00:09]} 54. Kh3 {[%emt 0:00:00]} Rc5 {[%emt 0:00:06]} 55. Kg4 {[%emt 0:00:00]} Rxf5 {[%emt 0:00:03]} 56. Kxf5 {[%emt 0:00:00]} Kg7 {[%emt 0:00:03]} 57. Ke6 {[%emt 0:00:00]} Bc5 {[%emt 0:00:02]} 58. f4 {[%emt 0:00:00]} Bd4 {[%emt 0:00:05]} 59. g4 {[%emt 0:00:00]} h6 {[%emt 0:00:04]} 60. Be8 {[%emt 0:00:00]} Bc3 {[%emt 0:00:05]} 61. Bh5 {[%emt 0:00:00]} 1/2-1/2

[Event "WJCC U20 Girls 2019"]
[Site "New Delhi"]
[Date "2019.10.19"]
[Round "6.8"]
[White "Priyanka Nutakki"]
[Black "Antova, Gabriela"]
[Result "0-1"]
[ECO "A06"]
[WhiteElo "2248"]
[BlackElo "2318"]
[Annotator "NA"]
[PlyCount "130"]
[EventDate "2019.10.15"]
[EventType "swiss"]
[EventCountry "IND"]
[SourceTitle "playchess.com"]
[Source "ChessBase"]
[SourceQuality "1"]
[TimeControl "40/5400+30:1800+30"]

1. Nf3 {[%emt 0:00:00]} d5 {[%emt 0:00:00]} 2. c4 {[%emt 0:00:00]} e6 {[%emt 0:00:00]} 3. e3 {[%emt 0:00:00]} Nf6 {[%emt 0:00:27]} 4. Nc3 {[%emt 0:02:23]} c6 {[%emt 0:00:38]} 5. b3 {[%emt 0:00:18]} Nbd7 {[%emt 0:00:56]} 6. Bb2 {[%emt 0:00:07]} Bd6 {[%emt 0:00:26]} 7. Be2 {[%emt 0:00:36]} O-O {[%emt 0:00:12]} 8. O-O {[%emt 0:00:19]} e5 {[%emt 0:03:34]} 9. cxd5 {[%emt 0:00:31]} Nxd5 {[%emt 0:00:09]} 10. Ne4 {[%emt 0:01:11]} Bc7 {[%emt 0:00:36]} 11. d4 $11 {[%emt 0:16:03]} Qe7 {[%emt 0:04:30]} 12. dxe5 {[%emt 0:05:19]} Nxe5 {[%emt 0:00:48]} 13. Ng3 {[%emt 0:01:07]} Ng4 {[%emt 0:21:44]} 14. Qd4 {[%emt 0:06:13]} Qf6 {[%emt 0:03:55]} 15. Qxf6 {[%emt 0:09:17]} Ngxf6 {[%emt 0:01:08]} 16. Nd4 {[%emt 0:11:51]} Re8 {[%emt 0:03:34]} 17. Rac1 {[%emt 0:02:05]} a5 {[%emt 0:09:45]} 18. a3 {[%emt 0:02:14]} g6 {[%emt 0:01:32]} 19. Rfd1 {[%emt 0:07:53]} Be5 {[%emt 0:05:34]} 20. Bf3 {[%emt 0:03:51]} Bg4 {[%emt 0:01:16]} 21. Rd2 {[%emt 0:03:19]} h5 {[%emt 0:05:48]} 22. Nge2 {[%emt 0:07:06]} Rad8 {[%emt 0:07:10]} 23. h3 {[%emt 0:05:59]} Bxf3 {[%emt 0:00:51]} 24. gxf3 {[%emt 0:00:32]} Nd7 {[%emt 0:06:17]} 25. Nc3 {[%emt 0:05:30]} Nc5 {[%emt 0:08:50]} 26. Nce2 {[%emt 0:02:56]} Nd7 {[%emt 0:00:06]} 27. Nc3 {[%emt 0:00:12]} Nxc3 {[%emt 0:02:31]} 28. Bxc3 {[%emt 0:00:18]} Bc7 {[%emt 0:00:11]} 29. b4 {[%emt 0:01:37]} Ne5 {[%emt 0:01:25]} 30. Kg2 {[%emt 0:01:16]} Nc4 {[%emt 0:00:38]} 31. Ra2 {[%emt 0:00:06]} a4 {[%emt 0:00:35]} 32. Ba1 {[%emt 0:00:58]} Ne5 {[%emt 0:01:23]} 33. b5 {[%emt 0:01:17]} c5 {[%emt 0:05:28]} 34. Rxc5 {[%emt 0:00:35]} Bd6 {[%emt 0:00:05]} 35. Rc3 {[%emt 0:01:32]} f5 {[%emt 0:01:11]} 36. f4 {[%emt 0:00:25]} Nd7 {[%emt 0:00:16]} 37. Rac2 {[%emt 0:01:02]} Nb6 {[%emt 0:01:07]} 38. Ne2 {[%emt 0:01:07]} Bb8 {[%emt 0:03:21]} 39. Bb2 {[%emt 0:00:25]} Rd5 {[%emt 0:00:19]} 40. Rc5 {[%emt 0:00:41]} Rd3 {[%emt 0:00:51]} 41. Nd4 {[%emt 0:08:42]} Bd6 {[%emt 0:12:04]} 42. R5c3 {[%emt 0:00:13]} Rxc3 {[%emt 0:00:48]} 43. Rxc3 {[%emt 0:00:02]} Rc8 {[%emt 0:00:41]} 44. Rxc8+ {[%emt 0:01:54]} Nxc8 {[%emt 0:00:02]} 45. Nf3 {[%emt 0:00:36]} Na7 {[%emt 0:01:28]} 46. Nd4 {[%emt 0:00:42]} Be7 {[%emt 0:04:24]} 47. Kf3 {[%emt 0:19:10]} Bf6 {[%emt 0:01:28]} 48. Bc3 {[%emt 0:03:41]} Bxd4 {[%emt 0:01:02]} 49. Bxd4 {[%emt 0:00:01]} Nxb5 {[%emt 0:00:06]} 50. Bb2 {[%emt 0:00:02]} Kf7 {[%emt 0:01:09]} 51. Kg3 {[%emt 0:00:23]} Nd6 {[%emt 0:02:01]} 52. f3 {[%emt 0:00:26]} Nc4 {[%emt 0:00:25]} 53. Bc1 {[%emt 0:00:06]} b5 {[%emt 0:00:39]} 54. e4 {[%emt 0:00:04]} b4 {[%emt 0:02:06]} 55. axb4 {[%emt 0:00:02]} a3 {[%emt 0:00:05]} 56. Bxa3 {[%emt 0:00:02]} Nxa3 {[%emt 0:00:04]} 57. Kh4 {[%emt 0:00:29]} Kf6 {[%emt 0:01:32]} 58. e5+ {[%emt 0:02:10]} Kg7 {[%emt 0:00:45]} 59. Kg3 {[%emt 0:00:47]} Nb5 {[%emt 0:00:46]} 60. Kf2 {[%emt 0:00:41]} Kf7 {[%emt 0:00:13]} 61. Ke3 {[%emt 0:00:05]} Ke6 {[%emt 0:00:13]} 62. Kd3 {[%emt 0:00:34]} Kd5 {[%emt 0:00:32]} 63. e6 {[%emt 0:00:06]} Kxe6 {[%emt 0:03:33]} 64. Kc4 {[%emt 0:00:01]} Nc7 {[%emt 0:01:36]} 65. b5 {[%emt 0:02:13]} Nxb5 {[%emt 0:01:21] Kd4 Ke5+} 0-1

[Event "WJCC U20 Girls 2019"]
[Site "New Delhi"]
[Date "2019.10.19"]
[Round "6.9"]
[White "Afraoui, Anaelle"]
[Black "Protopopova, Anastasiya"]
[Result "1-0"]
[ECO "B40"]
[WhiteElo "2106"]
[BlackElo "2263"]
[Annotator "NA"]
[PlyCount "115"]
[EventDate "2019.10.15"]
[EventType "swiss"]
[EventCountry "IND"]
[SourceTitle "playchess.com"]
[Source "ChessBase"]
[SourceQuality "1"]
[TimeControl "40/5400+30:1800+30"]

1. e4 c5 2. Nf3 e6 3. d4 cxd4 4. Nxd4 Nf6 5. Nc3 Nc6 6. Ndb5 Bb4 7. a3 Bxc3+ 8. Nxc3 d5 9. exd5 exd5 10. Bf4 d4 $11 11. Nb5 O-O 12. Be2 Nd5 13. Bg3 f5 14. c4 Nde7 15. Qd2 Ng6 16. Bd6 a6 17. Nc7 Qxd6 18. Nxa8 d3 19. Qxd3 Nd4 20. Rd1 Rd8 21. c5 Qe5 22. g3 f4 23. O-O Be6 24. Rfe1 Qf6 25. Nc7 Bb3 26. Qxb3+ Nxb3 27. Rxd8+ Qxd8 28. Bc4+ Kh8 29. Re8+ Qxe8 30. Nxe8 Nxc5 31. b4 Nd7 32. gxf4 Nxf4 33. Nd6 Ne5 34. Ba2 Nf3+ 35. Kh1 b6 36. Nf7+ Kg8 37. Ne5+ Kf8 38. Nxf3 Ke7 39. h4 a5 40. bxa5 bxa5 41. Kh2 Ne2 42. Bc4 Nc3 43. Ng5 h6 44. Ne6 Kf6 45. Kg2 g5 46. hxg5+ hxg5 47. Nd4 Ke5 48. Nc6+ Ke4 49. Nxa5 Kd4 50. Bf1 Kc5 51. Nc4 Kb5 52. Kf3 Ka4 53. Kg4 Nd1 54. f3 Nf2+ 55. Kxg5 Nh1 56. f4 Ng3 57. Bd3 Kb3 58. Kg4 1-0

[Event "WJCC U20 Girls 2019"]
[Site "New Delhi"]
[Date "2019.10.19"]
[Round "6.10"]
[White "Munkhzul, Turmunkh"]
[Black "Olde, Margareth"]
[Result "1/2-1/2"]
[ECO "C95"]
[WhiteElo "2332"]
[BlackElo "2205"]
[Annotator "NA"]
[PlyCount "138"]
[EventDate "2019.10.15"]
[EventType "swiss"]
[EventCountry "IND"]
[SourceTitle "playchess.com"]
[Source "ChessBase"]
[SourceQuality "1"]
[TimeControl "40/5400+30:1800+30"]

1. e4 {[%emt 0:00:00]} e5 {[%emt 0:00:00]} 2. Nf3 {[%emt 0:00:22]} Nc6 {[%emt 0:00:00]} 3. Bb5 {[%emt 0:01:23]} a6 {[%emt 0:00:04]} 4. Ba4 {[%emt 0:00:59]} Nf6 {[%emt 0:00:10]} 5. O-O {[%emt 0:01:11]} Be7 {[%emt 0:00:11]} 6. Re1 {[%emt 0:00:28]} b5 {[%emt 0:00:14]} 7. Bb3 {[%emt 0:00:08]} d6 {[%emt 0:00:15]} 8. c3 {[%emt 0:01:11]} O-O {[%emt 0:00:25]} 9. h3 {[%emt 0:00:51]} Nb8 {[%emt 0:00:10]} 10. d4 {[%emt 0:01:51]} Nbd7 {[%emt 0:00:16]} 11. Nbd2 {[%emt 0:00:54]} c5 {[%emt 0:00:15]} 12. Nf1 {[%emt 0:01:06]} Re8 {[%emt 0:00:21]} 13. Ng3 {[%emt 0:00:38]} Bf8 {[%emt 0:00:09]} 14. a4 {[%emt 0:00:50]} Bb7 {[%emt 0:00:38]} 15. Bc2 {[%emt 0:01:35]} cxd4 {[%emt 0:02:12]} 16. cxd4 {[%emt 0:00:21]} exd4 {[%emt 0:01:13]} 17. axb5 {[%emt 0:05:20]} axb5 {[%emt 0:00:10]} 18. Rxa8 $11 {[%emt 0:00:12]} Bxa8 {[%emt 0:04:57]} 19. Qxd4 {[%emt 0:07:03]} d5 {[%emt 0:32:02]} 20. e5 {[%emt 0:04:04]} Ne4 {[%emt 0:00:16]} 21. Nxe4 {[%emt 0:11:22]} dxe4 {[%emt 0:00:08]} 22. Bg5 {[%emt 0:17:51]} f6 {[%emt 0:33:01]} 23. exf6 {[%emt 0:01:52]} gxf6 {[%emt 0:02:25]} 24. Bb3+ {[%emt 0:00:20]} Kg7 {[%emt 0:07:39]} 25. Nh4 {[%emt 0:03:51]} Ne5 {[%emt 0:02:32]} 26. Nf5+ {[%emt 0:11:20]} Kg6 {[%emt 0:00:06]} 27. Nh4+ {[%emt 0:00:06]} Kg7 {[%emt 0:00:10]} 28. Be3 {[%emt 0:00:38]} Qxd4 {[%emt 0:01:38]} 29. Nf5+ {[%emt 0:00:06]} Kg6 {[%emt 0:00:54]} 30. Nxd4 {[%emt 0:00:17]} Nd3 {[%emt 0:03:00]} 31. Ra1 {[%emt 0:01:51]} Bc5 {[%emt 0:03:19]} 32. Nxb5 {[%emt 0:00:39]} Bxe3 {[%emt 0:01:01]} 33. fxe3 {[%emt 0:00:07]} Rb8 {[%emt 0:00:15]} 34. Nd4 {[%emt 0:02:08]} Nxb2 {[%emt 0:01:18]} 35. Be6 {[%emt 0:00:22]} Nd3 {[%emt 0:03:36]} 36. Bf5+ {[%emt 0:00:43]} Kh6 {[%emt 0:00:27]} 37. Ra6 {[%emt 0:03:24]} Kg5 {[%emt 0:01:02]} 38. Ra5 {[%emt 0:02:07]} Ne5 {[%emt 0:00:38]} 39. Bxh7 {[%emt 0:01:42]} Rb1+ {[%emt 0:00:32]} 40. Kf2 {[%emt 0:01:30]} Bb7 {[%emt 0:00:49]} 41. Rb5 {[%emt 0:31:31]} Rxb5 {[%emt 0:01:50]} 42. Nxb5 {[%emt 0:00:00]} Nc4 {[%emt 0:09:31]} 43. Bg8 {[%emt 0:00:00]} Nb2 {[%emt 0:01:23]} 44. Nd6 {[%emt 0:00:00]} Bc6 {[%emt 0:00:20]} 45. Bh7 {[%emt 0:00:00]} Nd3+ {[%emt 0:02:29]} 46. Kg3 {[%emt 0:00:00]} Nc5 {[%emt 0:00:06]} 47. Nf7+ {[%emt 0:00:00]} Kh5 {[%emt 0:00:08]} 48. Bf5 {[%emt 0:00:00]} Nb7 {[%emt 0:05:15]} 49. h4 {[%emt 0:00:00]} Bd5 {[%emt 0:00:55]} 50. Nh8 {[%emt 0:00:00]} Nd6 {[%emt 0:02:19]} 51. Bg4+ {[%emt 0:00:00]} Kh6 {[%emt 0:00:04]} 52. h5 {[%emt 0:00:00]} f5 {[%emt 0:01:28]} 53. Be2 {[%emt 0:00:00]} Kg5 {[%emt 0:01:28]} 54. Ng6 {[%emt 0:00:00]} Bc4 {[%emt 0:07:28]} 55. Bd1 {[%emt 0:00:00]} Nf7 {[%emt 0:02:16]} 56. Nf4 {[%emt 0:00:00]} Ne5 {[%emt 0:00:11]} 57. Nh3+ {[%emt 0:00:00]} Kf6 {[%emt 0:00:03]} 58. Ba4 {[%emt 0:00:00]} Bf7 {[%emt 0:00:45]} 59. Bd1 {[%emt 0:00:00]} Nc4 {[%emt 0:00:48]} 60. Kf4 {[%emt 0:00:00]} Nb6 {[%emt 0:00:07]} 61. Kg3 {[%emt 0:00:00]} Nd5 {[%emt 0:00:41]} 62. Kf2 {[%emt 0:00:00]} Nc3 {[%emt 0:00:16]} 63. Be2 {[%emt 0:00:00]} Nxe2 {[%emt 0:00:47]} 64. Kxe2 {[%emt 0:00:00]} Bxh5+ {[%emt 0:00:03]} 65. Kf2 {[%emt 0:00:00]} Be8 {[%emt 0:01:23]} 66. Kg3 {[%emt 0:00:00]} Ke5 {[%emt 0:01:02]} 67. Nf4 {[%emt 0:00:00]} Bf7 {[%emt 0:00:30]} 68. Kh4 {[%emt 0:00:00]} Kf6 {[%emt 0:00:19]} 69. g3 {[%emt 0:00:00]} Bc4 {[%emt 0:00:26]} 1/2-1/2